[Event "HUN-ch U8-U18 2019"]
[Site "Balatonlelle"]
[Date "2019.06.26"]
[Round "7.23"]
[White "Makay, Mark Janos"]
[Black "Herczeg, Marcell"]
[Result "1/2-1/2"]
[ECO "C54"]
[WhiteElo "1354"]
[BlackElo "1783"]
[Annotator "NA RC"]
[PlyCount "48"]
[EventDate "2019.06.21"]
[EventType "swiss"]
[EventCountry "HUN"]
[SourceTitle "playchess.com"]
[Source "ChessBase"]
[SourceQuality "1"]
[TimeControl "40/5400+30:1800+30"]

1. e4 {[%emt 0:00:12]} e5 {[%emt 0:00:27]} 2. Nf3 {[%emt 0:00:56]} Nc6 {[%emt 0:00:39]} 3. Bc4 {[%emt 0:00:26]} Bc5 {[%emt 0:00:55]} 4. c3 {[%emt 0:01:50]} Nf6 {[%emt 0:00:28]} 5. d4 {[%emt 0:01:37]} exd4 {[%emt 0:01:24]} 6. e5 {[%emt 0:01:18]} d5 {[%emt 0:01:00]} 7. Bb5 {[%emt 0:01:36]} Ne4 {[%emt 0:01:47]} 8. cxd4 {[%emt 0:01:08]} Bb4+ {[%emt 0:04:50]} 9. Bd2 {[%emt 0:02:33]} Nxd2 {[%emt 0:03:22]} 10. Nbxd2 {[%emt 0:01:39]} O-O {[%emt 0:01:00]} 11. Bxc6 {[%emt 0:03:16]} bxc6 {[%emt 0:00:06]} 12. Rc1 {[%emt 0:00:15]} Bd7 {[%emt 0:00:48]} 13. O-O {[%emt 0:02:34]} Re8 {[%emt 0:03:54]} 14. a3 {[%emt 0:03:05]} Ba5 {[%emt 0:04:26]} 15. Nb3 {[%emt 0:04:15]} Bb6 {[%emt 0:01:17]} 16. Nc5 {[%emt 0:02:42]} Bxc5 {[%emt 0:00:31]} 17. Rxc5 {[%emt 0:01:27]} Re6 {[%emt 0:01:41]} 18. Ne1 {[%emt 0:03:51]} Rg6 {[%emt 0:05:26]} 19. f4 {[%emt 0:06:50]} Bf5 {[%emt 0:06:39]} 20. Nf3 {[%emt 0:08:25]} Rb8 {[%emt 0:03:04]} 21. b4 {[%emt 0:02:22]} Rb6 {[%emt 0:04:52]} 22. Qe1 {[%emt 0:02:46]} Bd3 {[%emt 0:10:07]} 23. Rf2 {[%emt 0:04:49]} Ra6 {[%emt 0:07:07]} 24. Rc3 Bf5 1/2-1/2

[Event "HUN-ch U8-U18 2019"]
[Site "Balatonlelle"]
[Date "2019.06.26"]
[Round "7.24"]
[White "Megyaszai, Balazs"]
[Black "Szabo, Marton Nandor"]
[Result "1-0"]
[ECO "B72"]
[WhiteElo "1905"]
[BlackElo "1665"]
[Annotator "NA RC"]
[PlyCount "53"]
[EventDate "2019.06.21"]
[EventType "swiss"]
[EventCountry "HUN"]
[SourceTitle "playchess.com"]
[Source "ChessBase"]
[SourceQuality "1"]
[TimeControl "40/5400+30:1800+30"]

1. e4 {[%emt 0:00:26]} c5 {[%emt 0:00:09]} 2. Nf3 {[%emt 0:00:49]} d6 {[%emt 0:00:10]} 3. d4 {[%emt 0:02:08]} cxd4 {[%emt 0:00:28]} 4. Nxd4 {[%emt 0:02:05]} Nf6 {[%emt 0:00:41]} 5. Nc3 {[%emt 0:04:15]} Nc6 {[%emt 0:00:10]} 6. Be2 {[%emt 0:08:06]} g6 {[%emt 0:00:09]} 7. Be3 {[%emt 0:02:06]} Bg7 {[%emt 0:00:07]} 8. Qd2 {[%emt 0:02:57]} O-O {[%emt 0:01:11]} 9. O-O-O {[%emt 0:05:29]} d5 {[%emt 0:11:00]} 10. Nxc6 {[%emt 0:10:02]} bxc6 {[%emt 0:00:03]} 11. exd5 {[%emt 0:04:45]} cxd5 {[%emt 0:00:20]} 12. Bf3 {[%emt 0:17:53]} e6 {[%emt 0:01:37]} 13. h4 {[%emt 0:03:48]} h5 {[%emt 0:09:19]} 14. Bd4 {[%emt 0:07:15]} Re8 {[%emt 0:05:58]} 15. Rhe1 {[%emt 0:04:00]} Qd6 {[%emt 0:10:16]} 16. Bxf6 {[%emt 0:07:49]} Bxf6 {[%emt 0:01:17]} 17. Nxd5 {[%emt 0:04:13]} exd5 {[%emt 0:01:33]} 18. Rxe8+ {[%emt 0:00:23]} Kg7 {[%emt 0:00:04]} 19. Bxd5 {[%emt 0:03:54]} Rb8 {[%emt 0:00:30]} 20. Bb3 {[%emt 0:00:41]} Qc5 {[%emt 0:02:35]} 21. Qd6 {[%emt 0:00:43]} Qxd6 {[%emt 0:00:53]} 22. Rxd6 {[%emt 0:00:07]} Bxh4 {[%emt 0:00:16]} 23. g3 {[%emt 0:01:34]} Bg5+ {[%emt 0:00:28]} 24. f4 {[%emt 0:01:14]} Bf6 {[%emt 0:00:17]} 25. a4 {[%emt 0:01:34]} h4 {[%emt 0:00:16]} 26. gxh4 {[%emt 0:01:12]} Bxh4 {[%emt 0:00:02]} 27. Kb1 {[%emt 0:00:40]} 1-0

[Event "HUN-ch U8-U18 2019"]
[Site "Balatonlelle"]
[Date "2019.06.26"]
[Round "7.24"]
[White "Kovacsi, Sara Kata"]
[Black "Bodo, Boglarka"]
[Result "1/2-1/2"]
[ECO "E18"]
[WhiteElo "1570"]
[BlackElo "1646"]
[Annotator "NA RC"]
[PlyCount "89"]
[EventDate "2019.06.21"]
[EventType "swiss"]
[EventCountry "HUN"]
[SourceTitle "playchess.com"]
[Source "ChessBase"]
[SourceQuality "1"]
[TimeControl "40/5400+30:1800+30"]

1. c4 {[%emt 0:00:03]} e6 {[%emt 0:00:12]} 2. Nf3 {[%emt 0:00:14]} Nf6 {[%emt 0:00:24]} 3. g3 {[%emt 0:01:00]} b6 {[%emt 0:00:26]} 4. Bg2 {[%emt 0:00:32]} Bb7 {[%emt 0:00:30]} 5. O-O {[%emt 0:00:59]} Be7 {[%emt 0:01:32]} 6. d4 {[%emt 0:01:03]} O-O {[%emt 0:00:58]} 7. Nc3 {[%emt 0:01:17]} Ne4 {[%emt 0:03:48]} 8. Qc2 {[%emt 0:05:58]} Nxc3 {[%emt 0:03:22]} 9. bxc3 {[%emt 0:02:31]} f5 {[%emt 0:03:15]} 10. h4 {[%emt 0:07:42]} Be4 {[%emt 0:10:12]} 11. Qb3 {[%emt 0:02:08]} Nc6 {[%emt 0:04:32]} 12. Ng5 {[%emt 0:07:08]} Na5 {[%emt 0:04:06]} 13. Qa4 {[%emt 0:01:35]} Bxg2 {[%emt 0:01:22]} 14. Kxg2 {[%emt 0:00:08]} h6 {[%emt 0:01:11]} 15. Nf3 {[%emt 0:02:29]} Bf6 {[%emt 0:09:27]} 16. c5 {[%emt 0:05:31]} Nc6 {[%emt 0:02:32]} 17. Qc4 {[%emt 0:06:06]} Na5 {[%emt 0:03:36]} 18. Qa4 {[%emt 0:00:56]} c6 {[%emt 0:02:12]} 19. Bf4 {[%emt 0:08:05]} b5 {[%emt 0:02:54]} 20. Qc2 {[%emt 0:00:51]} Nc4 {[%emt 0:01:48]} 21. Rad1 {[%emt 0:06:53]} Qa5 {[%emt 0:06:57]} 22. Ne5 {[%emt 0:04:03]} Bxe5 {[%emt 0:03:25]} 23. Bxe5 {[%emt 0:02:07]} Qa3 {[%emt 0:02:19]} 24. Qb3 {[%emt 0:09:50]} Qxb3 {[%emt 0:01:11]} 25. axb3 {[%emt 0:00:08]} Na5 {[%emt 0:00:52]} 26. Rb1 {[%emt 0:01:01]} Nb7 {[%emt 0:01:38]} 27. Rb2 {[%emt 0:02:56]} d6 {[%emt 0:02:42]} 28. cxd6 {[%emt 0:01:43]} Rfd8 {[%emt 0:00:07]} 29. Ra1 {[%emt 0:01:06]} Nxd6 {[%emt 0:00:14]} 30. Bxd6 {[%emt 0:00:07]} Rxd6 {[%emt 0:00:15]} 31. Rba2 {[%emt 0:00:09]} Rd7 {[%emt 0:00:19]} 32. Ra6 {[%emt 0:00:28]} Rc7 {[%emt 0:00:25]} 33. b4 {[%emt 0:03:07]} Kf7 {[%emt 0:00:18]} 34. Kf3 {[%emt 0:00:43]} Ke7 {[%emt 0:00:29]} 35. Ke3 {[%emt 0:01:36]} Kd6 {[%emt 0:01:25]} 36. Kd3 {[%emt 0:02:30]} g5 {[%emt 0:01:25]} 37. hxg5 {[%emt 0:02:27]} hxg5 {[%emt 0:00:09]} 38. c4 {[%emt 0:00:32]} Rb7 {[%emt 0:00:31]} 39. cxb5 {[%emt 0:02:44]} Rxb5 {[%emt 0:00:14]} 40. Kc4 {[%emt 0:00:00]} Rab8 {[%emt 0:00:00]} 41. R1a4 {[%emt 0:02:01]} Rh8 {[%emt 0:01:54]} 42. e3 {[%emt 0:07:25]} Rh2 {[%emt 0:02:03]} 43. Ra2 {[%emt 0:00:52]} Rh1 {[%emt 0:05:54]} 44. Rc2 {[%emt 0:02:55]} Rb1 {[%emt 0:01:49]} 45. Ra4 {[%emt 0:02:58] Ke5} 1/2-1/2

[Event "HUN-ch U8-U18 2019"]
[Site "Balatonlelle"]
[Date "2019.06.26"]
[Round "7.25"]
[White "Szarka, Tibor"]
[Black "Gulacsi, Donat Ferenc"]
[Result "1-0"]
[ECO "B13"]
[WhiteElo "1379"]
[BlackElo "1638"]
[Annotator "NA RC"]
[PlyCount "119"]
[EventDate "2019.06.21"]
[EventType "swiss"]
[EventCountry "HUN"]
[SourceTitle "playchess.com"]
[Source "ChessBase"]
[SourceQuality "1"]
[TimeControl "40/5400+30:1800+30"]

1. e4 {[%emt 0:00:05]} c6 {[%emt 0:00:13]} 2. d4 {[%emt 0:00:12]} d5 {[%emt 0:00:06]} 3. exd5 {[%emt 0:00:21]} cxd5 {[%emt 0:01:46]} 4. Bd3 {[%emt 0:00:26]} Nc6 {[%emt 0:02:51]} 5. c3 {[%emt 0:00:38]} Nf6 {[%emt 0:00:47]} 6. Bf4 {[%emt 0:01:12]} e6 {[%emt 0:00:59]} 7. Nd2 {[%emt 0:02:09]} Bd6 {[%emt 0:00:49]} 8. Bg3 {[%emt 0:00:33]} O-O {[%emt 0:07:45]} 9. Ngf3 {[%emt 0:01:16]} a6 {[%emt 0:02:51]} 10. a4 {[%emt 0:07:50]} Re8 {[%emt 0:08:08]} 11. O-O {[%emt 0:01:42]} e5 {[%emt 0:02:27]} 12. dxe5 {[%emt 0:02:10]} Nxe5 {[%emt 0:00:15]} 13. Nxe5 {[%emt 0:04:37]} Bxe5 {[%emt 0:00:52]} 14. Bxe5 {[%emt 0:04:12]} Rxe5 {[%emt 0:00:10]} 15. Qb3 {[%emt 0:01:16]} Qd6 {[%emt 0:06:30]} 16. Rfe1 {[%emt 0:09:41]} Rh5 {[%emt 0:02:32]} 17. g3 {[%emt 0:01:11]} Bd7 {[%emt 0:04:56]} 18. Qxb7 {[%emt 0:12:56]} Rb8 {[%emt 0:03:45]} 19. Qxa6 {[%emt 0:02:29]} Rb6 {[%emt 0:06:32]} 20. Qa8+ {[%emt 0:01:46]} Rb8 {[%emt 0:00:10]} 21. Qa6 {[%emt 0:00:55]} Qxa6 {[%emt 0:01:44]} 22. Bxa6 {[%emt 0:00:08]} Rxb2 {[%emt 0:00:23]} 23. Rab1 {[%emt 0:01:59]} Rxb1 {[%emt 0:01:01]} 24. Rxb1 {[%emt 0:00:07]} Bxa4 {[%emt 0:02:26]} 25. Rb8+ {[%emt 0:01:46]} Be8 {[%emt 0:01:50]} 26. Bb5 {[%emt 0:01:33]} Re5 {[%emt 0:01:01]} 27. Nf3 {[%emt 0:03:10]} Re7 {[%emt 0:01:14]} 28. Nd4 {[%emt 0:01:05]} Kf8 {[%emt 0:00:54]} 29. Nf5 {[%emt 0:03:23]} Re1+ {[%emt 0:00:19]} 30. Kg2 {[%emt 0:00:14]} g6 {[%emt 0:03:55]} 31. Ne3 {[%emt 0:03:13]} Rb1 {[%emt 0:09:54]} 32. Nxd5 {[%emt 0:04:26]} Rxb5 {[%emt 0:00:24]} 33. Rxb5 {[%emt 0:00:49]} Bxb5 {[%emt 0:00:07]} 34. Nxf6 {[%emt 0:00:15]} Bc6+ {[%emt 0:00:47]} 35. Kf1 {[%emt 0:01:50]} Ke7 {[%emt 0:03:55]} 36. Ng4 {[%emt 0:01:46]} Kd6 {[%emt 0:01:27]} 37. Ke1 {[%emt 0:01:44]} h5 {[%emt 0:00:34]} 38. Ne3 {[%emt 0:01:01]} Bd7 {[%emt 0:00:50]} 39. f4 {[%emt 0:04:28]} Kc5 {[%emt 0:01:24]} 40. Kd2 {[%emt 0:00:00]} Bb5 {[%emt 0:00:00]} 41. Nc2 {[%emt 0:04:49]} Bf1 {[%emt 0:02:54]} 42. Ne1 {[%emt 0:01:43]} Bb5 {[%emt 0:05:55]} 43. Nf3 {[%emt 0:00:54]} Bc4 {[%emt 0:01:42]} 44. Ne5 {[%emt 0:00:52]} Be6 {[%emt 0:01:06]} 45. Ke3 {[%emt 0:02:31]} Ba2 {[%emt 0:00:37]} 46. g4 {[%emt 0:06:40]} hxg4 {[%emt 0:02:00]} 47. Nxg4 {[%emt 0:00:12]} Be6 {[%emt 0:00:48]} 48. Ne5 {[%emt 0:01:07]} Bd5 {[%emt 0:07:19]} 49. h4 {[%emt 0:01:19]} Be6 {[%emt 0:00:52]} 50. f5 {[%emt 0:08:44]} Bxf5 {[%emt 0:01:42]} 51. Nxf7 {[%emt 0:00:39]} Be6 {[%emt 0:01:48]} 52. Ne5 {[%emt 0:00:21]} Bf5 {[%emt 0:00:27]} 53. Kf4 {[%emt 0:00:46]} Kd5 {[%emt 0:01:46]} 54. h5 {[%emt 0:03:14]} Bc2 {[%emt 0:01:31]} 55. Nxg6 {[%emt 0:01:05]} Ke6 {[%emt 0:01:00]} 56. Kg5 {[%emt 0:01:11]} Kf7 {[%emt 0:00:12]} 57. c4 {[%emt 0:00:23]} Kg7 {[%emt 0:00:28]} 58. c5 {[%emt 0:00:35]} Be4 {[%emt 0:00:18]} 59. h6+ {[%emt 0:00:47]} Kh7 {[%emt 0:00:12]} 60. Ne7 {[%emt 0:01:19]} 1-0

[Event "HUN-ch U8-U18 2019"]
[Site "Balatonlelle"]
[Date "2019.06.26"]
[Round "7.26"]
[White "Andras, Ferenc"]
[Black "Marjanovic, Alex"]
[Result "0-1"]
[ECO "C58"]
[WhiteElo "1329"]
[BlackElo "1629"]
[Annotator "NA RC"]
[PlyCount "88"]
[EventDate "2019.06.21"]
[EventType "swiss"]
[EventCountry "HUN"]
[SourceTitle "playchess.com"]
[Source "ChessBase"]
[SourceQuality "1"]
[TimeControl "40/5400+30:1800+30"]

1. e4 {[%emt 0:00:02]} e5 {[%emt 0:00:14]} 2. Nf3 {[%emt 0:00:18]} Nc6 {[%emt 0:00:16]} 3. Bc4 {[%emt 0:00:29]} Nf6 {[%emt 0:00:49]} 4. Ng5 {[%emt 0:01:01]} d5 {[%emt 0:00:33]} 5. exd5 {[%emt 0:00:31]} Na5 {[%emt 0:00:31]} 6. Bb5+ {[%emt 0:00:33]} c6 {[%emt 0:00:36]} 7. dxc6 {[%emt 0:00:38]} bxc6 {[%emt 0:00:17]} 8. Bd3 {[%emt 0:00:54]} Nd5 {[%emt 0:01:18]} 9. Ne4 {[%emt 0:01:37]} f5 {[%emt 0:06:43]} 10. Ng3 {[%emt 0:02:00]} e4 {[%emt 0:01:43]} 11. Be2 {[%emt 0:01:04]} Be7 {[%emt 0:02:30]} 12. Nc3 {[%emt 0:03:07]} O-O {[%emt 0:02:52]} 13. d3 {[%emt 0:03:42]} Bb4 {[%emt 0:06:08]} 14. Bd2 {[%emt 0:04:19]} exd3 {[%emt 0:07:42]} 15. Bxd3 {[%emt 0:01:15]} f4 {[%emt 0:02:13]} 16. Nge4 {[%emt 0:04:14]} Nb7 {[%emt 0:07:35]} 17. Nxd5 {[%emt 0:03:52]} Bxd2+ {[%emt 0:00:22]} 18. Qxd2 {[%emt 0:01:20]} cxd5 {[%emt 0:00:10]} 19. Nc3 {[%emt 0:01:02]} Qg5 {[%emt 0:02:10]} 20. O-O-O {[%emt 0:03:26]} d4 {[%emt 0:01:40]} 21. Bc4+ {[%emt 0:02:38]} Kh8 {[%emt 0:00:44]} 22. Ne4 {[%emt 0:01:55]} Qg6 {[%emt 0:04:19]} 23. Qxd4 {[%emt 0:01:49]} Bf5 {[%emt 0:00:14]} 24. Bd5 {[%emt 0:02:24]} Rad8 {[%emt 0:02:09]} 25. Qa4 {[%emt 0:03:20]} Rxd5 {[%emt 0:01:17]} 26. Rxd5 {[%emt 0:01:29]} Bxe4 {[%emt 0:00:07]} 27. Rd2 {[%emt 0:02:49]} a6 {[%emt 0:07:11]} 28. f3 {[%emt 0:02:51]} Bf5 {[%emt 0:02:49]} 29. Qb4 {[%emt 0:04:29]} Qf7 {[%emt 0:01:41]} 30. Kb1 {[%emt 0:01:41]} Rc8 {[%emt 0:00:57]} 31. Rhd1 {[%emt 0:02:16]} h6 {[%emt 0:03:40]} 32. Qxf4 {[%emt 0:02:44]} Bxc2+ {[%emt 0:00:33]} 33. Rxc2 {[%emt 0:00:20]} Qxf4 {[%emt 0:00:07]} 34. Rxc8+ {[%emt 0:00:09]} Kh7 {[%emt 0:00:07]} 35. Rdc1 {[%emt 0:01:27]} Qxh2 {[%emt 0:01:46]} 36. R8c7 {[%emt 0:00:22]} Nd6 {[%emt 0:00:25]} 37. R7c2 {[%emt 0:00:33]} Qg3 {[%emt 0:01:49]} 38. b4 {[%emt 0:00:50]} Nb5 {[%emt 0:00:24]} 39. Kb2 {[%emt 0:00:34]} Qe5+ {[%emt 0:00:29]} 40. Kb3 {[%emt 0:00:00]} Qe3+ {[%emt 0:00:00]} 41. Kb2 {[%emt 0:00:57]} Qa3+ {[%emt 0:00:32]} 42. Ka1 {[%emt 0:00:30]} Qxb4 {[%emt 0:00:11]} 43. Rc4 {[%emt 0:00:29]} Qd2 {[%emt 0:00:35]} 44. R4c2 {[%emt 0:00:17]} Qd4+ {[%emt 0:00:35]} 0-1

[Event "HUN-ch U8-U18 2019"]
[Site "Balatonlelle"]
[Date "2019.06.26"]
[Round "7.27"]
[White "Karacsonyi, Bank"]
[Black "Matyassy, Lazar"]
[Result "1-0"]
[ECO "B35"]
[WhiteElo "1529"]
[BlackElo "1539"]
[Annotator "NA RC"]
[PlyCount "61"]
[EventDate "2019.06.21"]
[EventType "swiss"]
[EventCountry "HUN"]
[SourceTitle "playchess.com"]
[Source "ChessBase"]
[SourceQuality "1"]
[TimeControl "40/5400+30:1800+30"]

1. e4 {[%emt 0:00:02]} c5 {[%emt 0:00:42]} 2. Nf3 {[%emt 0:00:10]} g6 {[%emt 0:00:15]} 3. d4 {[%emt 0:00:15]} Bg7 {[%emt 0:00:06]} 4. Nc3 {[%emt 0:00:35]} cxd4 {[%emt 0:01:10]} 5. Nxd4 {[%emt 0:00:10]} Nc6 {[%emt 0:00:09]} 6. Be3 {[%emt 0:01:15]} Nf6 {[%emt 0:00:09]} 7. Bc4 {[%emt 0:01:30]} O-O {[%emt 0:00:34]} 8. h3 {[%emt 0:01:29]} d6 {[%emt 0:04:23]} 9. Qd2 {[%emt 0:00:20]} Bd7 {[%emt 0:00:32]} 10. O-O-O {[%emt 0:01:28]} a6 {[%emt 0:00:34]} 11. h4 {[%emt 0:06:51]} b5 {[%emt 0:01:09]} 12. Nxc6 {[%emt 0:00:58]} Bxc6 {[%emt 0:00:13]} 13. Bd5 {[%emt 0:03:29]} Bxd5 {[%emt 0:00:31]} 14. exd5 {[%emt 0:00:15]} Ng4 {[%emt 0:02:41]} 15. Bd4 {[%emt 0:01:22]} Bh6 {[%emt 0:07:55]} 16. f4 {[%emt 0:04:31]} e5 {[%emt 0:05:21]} 17. dxe6 {[%emt 0:00:17]} fxe6 {[%emt 0:00:10]} 18. g3 e5 {[%emt 0:00:41]} 19. Be3 {[%emt 0:00:29]} Nxe3 {[%emt 0:01:40]} 20. Qxe3 {[%emt 0:00:08]} Rxf4 {[%emt 0:05:00]} 21. Kb1 {[%emt 0:02:17]} Rxh4 {[%emt 0:01:51]} 22. Qf3 {[%emt 0:01:10]} Rxh1 {[%emt 0:00:51]} 23. Rxh1 {[%emt 0:00:14]} Qf8 {[%emt 0:11:10]} 24. Qd5+ {[%emt 0:01:22]} Kh8 {[%emt 0:00:17]} 25. Rxh6 {[%emt 0:00:21]} Qxh6 {[%emt 0:08:28]} 26. Qxa8+ {[%emt 0:00:07]} Kg7 {[%emt 0:00:05]} 27. Qb7+ {[%emt 0:00:26]} Kf6 {[%emt 0:00:10]} 28. Qc6 {[%emt 0:01:14]} Ke7 {[%emt 0:03:48]} 29. Nd5+ {[%emt 0:00:53]} Ke6 {[%emt 0:00:16]} 30. Nc7+ {[%emt 0:00:06]} Kf5 {[%emt 0:00:50]} 31. Qf3+ {[%emt 0:00:16]} 1-0

[Event "HUN-ch U8-U18 2019"]
[Site "Balatonlelle"]
[Date "2019.06.26"]
[Round "7.28"]
[White "Vadkerti, Vince"]
[Black "Giang, Tran Nam"]
[Result "0-1"]
[ECO "B40"]
[WhiteElo "1558"]
[BlackElo "2008"]
[Annotator "NA RC"]
[PlyCount "38"]
[EventDate "2019.06.21"]
[EventType "swiss"]
[EventCountry "HUN"]
[SourceTitle "playchess.com"]
[Source "ChessBase"]
[SourceQuality "1"]
[TimeControl "40/5400+30:1800+30"]

1. e4 {[%emt 0:00:04]} c5 {[%emt 0:00:00]} 2. Nf3 {[%emt 0:00:09]} e6 {[%emt 0:00:04]} 3. d4 {[%emt 0:00:08]} cxd4 {[%emt 0:00:03]} 4. Nxd4 {[%emt 0:00:14]} Qb6 {[%emt 0:00:03]} 5. Nb3 {[%emt 0:00:57]} Qc7 {[%emt 0:00:10]} 6. Nc3 {[%emt 0:03:04]} a6 {[%emt 0:00:16]} 7. Be3 {[%emt 0:03:20]} Nf6 {[%emt 0:01:35]} 8. Qf3 {[%emt 0:08:36]} Nc6 {[%emt 0:06:22]} 9. Nd4 {[%emt 0:08:21]} Bb4 {[%emt 0:03:52]} 10. Nxc6 {[%emt 0:05:57]} Qxc6 {[%emt 0:10:52]} 11. Bd2 {[%emt 0:08:45]} d5 {[%emt 0:06:35]} 12. e5 {[%emt 0:11:50]} Ne4 {[%emt 0:05:57]} 13. Nxe4 {[%emt 0:04:01]} dxe4 {[%emt 0:00:09]} 14. Qe2 {[%emt 0:03:47]} Be7 {[%emt 0:04:39]} 15. Bc3 {[%emt 0:00:44]} O-O {[%emt 0:01:28]} 16. O-O-O {[%emt 0:01:05]} b5 {[%emt 0:00:54]} 17. h4 {[%emt 0:02:45]} Bb7 {[%emt 0:03:50]} 18. a3 {[%emt 0:16:49]} Bxa3 {[%emt 0:03:11]} 19. bxa3 {[%emt 0:01:03]} Qxc3 {[%emt 0:00:12]} 0-1

[Event "HUN-ch U8-U18 2019"]
[Site "Balatonlelle"]
[Date "2019.06.26"]
[Round "7.29"]
[White "Foldes, Marton Gabor"]
[Black "Panda, Barnabas"]
[Result "1-0"]
[ECO "B88"]
[WhiteElo "1653"]
[BlackElo "1722"]
[Annotator "NA RC"]
[PlyCount "33"]
[EventDate "2019.06.21"]
[EventType "swiss"]
[EventCountry "HUN"]
[SourceTitle "playchess.com"]
[Source "ChessBase"]
[SourceQuality "1"]
[TimeControl "40/5400+30:1800+30"]

1. e4 {[%emt 0:00:01]} c5 {[%emt 0:00:11]} 2. Nf3 {[%emt 0:00:09]} Nc6 {[%emt 0:00:18]} 3. d4 {[%emt 0:00:16]} cxd4 {[%emt 0:00:20]} 4. Nxd4 {[%emt 0:00:13]} Nf6 {[%emt 0:00:31]} 5. Nc3 {[%emt 0:00:28]} d6 {[%emt 0:00:44]} 6. Bc4 {[%emt 0:00:31]} e6 {[%emt 0:00:28]} 7. O-O {[%emt 0:01:34]} Be7 {[%emt 0:00:55]} 8. Be3 {[%emt 0:02:39]} a6 {[%emt 0:01:42]} 9. Qe2 {[%emt 0:04:16]} Qc7 {[%emt 0:01:19]} 10. Bb3 {[%emt 0:02:25]} b5 {[%emt 0:02:36]} 11. Nxc6 {[%emt 0:10:26]} Qxc6 {[%emt 0:02:41]} 12. a4 {[%emt 0:02:55]} b4 {[%emt 0:13:27]} 13. a5 {[%emt 0:03:29]} Nd7 {[%emt 0:01:55]} 14. Nd5 {[%emt 0:03:40]} Bb7 {[%emt 0:04:42]} 15. Ba4 {[%emt 0:00:48]} Qc8 {[%emt 0:04:55]} 16. Nb6 {[%emt 0:00:21]} Qc7 {[%emt 0:02:54]} 17. Bxd7+ {[%emt 0:00:28]} 1-0

[Event "HUN-ch U8-U18 2019"]
[Site "Balatonlelle"]
[Date "2019.06.26"]
[Round "7.30"]
[White "Havasi, Gergely Bulcsu"]
[Black "Toth, Barnabas"]
[Result "0-1"]
[ECO "A05"]
[WhiteElo "1486"]
[BlackElo "1363"]
[Annotator "NA RC"]
[PlyCount "130"]
[EventDate "2019.06.21"]
[EventType "swiss"]
[EventCountry "HUN"]
[SourceTitle "playchess.com"]
[Source "ChessBase"]
[SourceQuality "1"]
[TimeControl "40/5400+30:1800+30"]

1. Nf3 {[%emt 0:00:02]} Nf6 {[%emt 0:00:11]} 2. g3 {[%emt 0:00:11]} g6 {[%emt 0:00:21]} 3. Bg2 {[%emt 0:00:25]} Bg7 {[%emt 0:00:14]} 4. O-O {[%emt 0:00:30]} O-O {[%emt 0:00:06]} 5. c3 {[%emt 0:01:10]} c5 {[%emt 0:00:30]} 6. Re1 {[%emt 0:01:37]} d6 {[%emt 0:02:23]} 7. d4 {[%emt 0:01:40]} Na6 {[%emt 0:04:49]} 8. e4 {[%emt 0:02:02]} Bg4 {[%emt 0:02:57]} 9. Qd3 {[%emt 0:02:12]} cxd4 {[%emt 0:01:37]} 10. cxd4 {[%emt 0:00:23]} Rc8 {[%emt 0:00:34]} 11. Bd2 {[%emt 0:01:57]} Qb6 {[%emt 0:02:31]} 12. Bc3 Nb4 13. Qd2 {[%emt 0:06:44]} Nc6 {[%emt 0:02:14]} 14. d5 {[%emt 0:02:28]} Nb8 {[%emt 0:00:31]} 15. h3 {[%emt 0:02:32]} Bxf3 {[%emt 0:00:16]} 16. Bxf3 {[%emt 0:00:07]} Qc7 {[%emt 0:03:23]} 17. Na3 {[%emt 0:01:26]} a6 {[%emt 0:05:46]} 18. Rac1 {[%emt 0:01:47]} Qd8 {[%emt 0:01:39]} 19. Rc2 {[%emt 0:06:37]} Nbd7 {[%emt 0:01:17]} 20. Rec1 {[%emt 0:04:24]} Nc5 {[%emt 0:10:29]} 21. Bxf6 {[%emt 0:01:13]} Bxf6 {[%emt 0:08:13]} 22. b4 {[%emt 0:00:48]} Nxe4 {[%emt 0:03:01]} 23. Bxe4 {[%emt 0:00:10]} Rxc2 {[%emt 0:00:29]} 24. Qxc2 {[%emt 0:00:43]} Qb6 {[%emt 0:00:22]} 25. Qb3 {[%emt 0:00:58]} Bd4 {[%emt 0:00:42]} 26. Rf1 {[%emt 0:00:53]} Rc8 {[%emt 0:00:31]} 27. b5 {[%emt 0:04:42]} f5 {[%emt 0:05:29]} 28. Bg2 {[%emt 0:01:15]} Rc3 {[%emt 0:00:59]} 29. Nc4 {[%emt 0:04:25]} Qc5 {[%emt 0:03:50]} 30. Qd1 {[%emt 0:00:46]} Rxc4 {[%emt 0:00:51]} 31. bxa6 {[%emt 0:00:36]} bxa6 {[%emt 0:00:20]} 32. Qe1 {[%emt 0:03:50]} Be5 {[%emt 0:01:48]} 33. Kh1 {[%emt 0:00:38]} f4 {[%emt 0:02:38]} 34. gxf4 {[%emt 0:00:53]} Rxf4 {[%emt 0:00:17]} 35. Qd2 {[%emt 0:00:38]} Qb4 {[%emt 0:02:52]} 36. Qe3 {[%emt 0:02:44]} Rf6 {[%emt 0:02:02]} 37. Rc1 {[%emt 0:01:56]} Qf4 {[%emt 0:01:33]} 38. Qxf4 {[%emt 0:00:19]} Rxf4 {[%emt 0:00:20]} 39. Kg1 {[%emt 0:00:45]} Bd4 {[%emt 0:00:59]} 40. Rc2 {[%emt 0:00:00]} Kf7 {[%emt 0:00:00]} 41. Re2 {[%emt 0:01:22]} Be5 {[%emt 0:02:12]} 42. Rc2 {[%emt 0:00:41]} Rd4 {[%emt 0:00:13]} 43. Kf1 {[%emt 0:00:18]} a5 {[%emt 0:01:18]} 44. Rc1 {[%emt 0:01:19]} Rd2 {[%emt 0:00:45]} 45. Ke1 {[%emt 0:01:05]} Rxa2 46. Bf3 {[%emt 0:00:34]} Ra3 {[%emt 0:02:15]} 47. Bg4 {[%emt 0:00:08]} Kf6 {[%emt 0:00:51]} 48. Rc4 {[%emt 0:01:11]} Rd3 {[%emt 0:01:18]} 49. Be6 {[%emt 0:00:24]} Rd4 {[%emt 0:01:04]} 50. Rc8 {[%emt 0:00:10]} Kg5 {[%emt 0:02:16]} 51. Re8 {[%emt 0:00:24]} Bf6 {[%emt 0:00:51]} 52. Bg8 {[%emt 0:00:24]} h6 {[%emt 0:01:39]} 53. Bf7 {[%emt 0:00:05]} Kf5 {[%emt 0:01:22]} 54. Be6+ {[%emt 0:00:15]} Kf4 {[%emt 0:00:33]} 55. Rb8 {[%emt 0:00:18]} Rb4 {[%emt 0:00:54]} 56. Ra8 {[%emt 0:00:16]} Rc4 {[%emt 0:00:39]} 57. Ke2 {[%emt 0:00:29]} Rc5 {[%emt 0:00:28]} 58. Rb8 {[%emt 0:00:56]} Rc2+ {[%emt 0:00:46]} 59. Kf1 {[%emt 0:00:15]} Bh4 {[%emt 0:01:00]} 60. Rf8+ {[%emt 0:00:26]} Bf6 {[%emt 0:00:33]} 61. Ra8 {[%emt 0:00:46]} Ra2 {[%emt 0:00:13]} 62. Rc8 {[%emt 0:00:20]} h5 {[%emt 0:01:05]} 63. Rc4+ {[%emt 0:00:11]} Kf3 {[%emt 0:00:39]} 64. Kg1 {[%emt 0:00:22]} Ra1+ {[%emt 0:00:17]} 65. Kh2 {[%emt 0:00:12]} Be5+ 0-1